bitfinex/quotes_ETHUSD_20240530
["timestamp","ask_amount","ask_price","bid_price","bid_amount"]
[1717057730466,1.95545253,3717.6,3716.7,2.716]
[1717057730467,2.68999,3717.5,3716.7,2.716]
[1717057730673,1.95545253,3717.4,3716.8,1.56949222]
[1717057730862,1.95545253,3717.4,3716.8,1.59540012]
[1717057731260,1.95545253,3717.4,3716.9,1.29789222]
[1717057731459,2.68999,3717.5,3716.9,1.29789222]
[1717057731649,2.68999,3717.5,3717.0,0.02589735]
[1717057732005,2.68999,3717.5,3717.1,1.45743118]
[1717057732418,2.68999,3717.5,3717.2,0.02588681]
[1717057732558,2.68999,3717.5,3717.3,1.29789222]
[1717057732759,2.68999,3717.5,3717.4,0.02587626]
[1717057733027,2.68999,3717.5,3717.4,1.32376848]
[1717057736105,4.64542635,3717.5,3717.4,1.32376848]
[1717057736465,4.64542635,3717.5,3717.4,1.29789222]
[1717057736911,2.68999,3717.5,3717.4,1.29789222]
[1717057737298,2.68999,3717.5,3717.4,1.32376848]
[1717057738440,2.68999,3717.5,3717.4,0.02587626]
[1717057738441,7.47849241,3717.5,3717.4,0.02587626]
[1717057738707,10.47849241,3717.5,3717.4,0.02587626]
[1717057739024,2.69053,3716.8,3716.3,2.8628]
[1717057739329,2.69053,3716.8,3716.4,1.58417222]
[1717057739522,2.69053,3716.8,3716.4,1.60855222]
[1717057739887,2.69053,3716.8,3716.4,1.62837189]
[1717057740206,2.69053,3716.8,3716.4,1.58417222]
[1717057740405,2.69053,3716.8,3716.4,1.29789222]
[1717057741322,1.9558404,3716.7,3716.4,1.29789222]
[1717057741821,2.69053,3716.8,3716.4,1.29789222]
[1717057743208,2.69086,3716.3,3715.9,0.40128131]
[1717057743520,2.69086,3716.3,3716.0,1.29789222]
[1717057744087,4.67286,3716.3,3716.0,1.29789222]
[1717057746923,2.69051,3716.8,3716.0,1.29789222]
[1717057747148,1.95610516,3716.7,3716.0,1.29789222]
[1717057747343,2.69051,3716.8,3716.2,2.7225]
[1717057747570,2.93366318,3717.6,3716.3,1.69993144]
[1717057747571,4.67214,3717.3,3716.3,1.69993144]
[1717057748445,4.67214,3717.3,3716.6,1.29789222]
[1717057748633,4.67178,3717.8,3716.7,1.29789222]
[1717057750380,4.67178,3717.8,3717.0,1.29789222]
[1717057750381,2.68978,3717.8,3717.0,1.29789222]
[1717057751609,2.68978,3717.8,3717.1,2.7062]
[1717057752575,2.6894,3718.3,3717.1,2.7062]
[1717057753461,1.95519879,3718.2,3717.1,2.7062]
[1717057754195,2.68974,3717.9,3717.1,2.7062]
[1717057754402,2.68974,3717.9,3717.2,1.29789222]
[1717057763060,2.69002,3717.5,3717.2,1.29789222]
[1717057763261,2.69002,3717.5,3716.6,2.7784]
[1717057763465,2.69002,3717.5,3716.7,1.29789222]
[1717057763695,2.69002,3717.5,3715.0,1.982]
[1717057763696,2.69034,3717.0,3715.5,2.8809]
[1717057763873,2.69034,3717.0,3715.8,1.29789222]
[1717057764417,2.69065,3716.6,3715.8,1.29789222]
[1717057770129,2.69065,3716.6,3716.0,1.29789222]
[1717057771632,3.0,3717.2,3716.2,1.29789222]
[1717057771633,2.69029,3717.1,3716.2,1.29789222]
[1717057771831,2.69029,3717.1,3716.3,2.7187]
[1717057772060,2.69029,3717.1,3716.4,1.69955144]
[1717057774321,2.69029,3717.1,3716.4,1.29789222]
[1717057777538,1.982,3717.4,3716.7,1.29789222]
[1717057777839,2.68993,3717.6,3716.8,4.17609222]
[1717057778225,2.68993,3717.6,3716.9,1.29789222]
[1717057778398,2.68993,3717.6,3717.1,1.29789222]
[1717057778994,2.68993,3717.6,3717.2,1.29789222]
[1717057781419,2.68993,3717.6,3717.0,0.41760922]
[1717057781420,4.67159,3718.1,3717.4,1.29789222]
[1717057782718,2.68959,3718.1,3717.4,1.29789222]
[1717057787425,2.68986,3717.7,3717.4,1.29789222]
[1717057790341,2.69019,3717.3,3716.6,2.6728]
[1717057790542,2.69019,3717.3,3716.7,1.29789222]
[1717057793361,4.67219,3717.3,3716.7,1.29789222]
[1717057795678,2.69019,3717.3,3716.7,1.29789222]
[1717057802749,2.69053,3716.8,3716.2,2.6728]
[1717057802971,2.69053,3716.8,3716.3,1.29789222]
[1717057803332,1.982,3717.1,3716.6,1.29789222]
[1717057803594,2.69017,3717.3,3716.6,1.29789222]
[1717057803793,1.95575256,3717.2,3716.6,1.29789222]
[1717057805500,2.69032,3717.1,3716.6,1.29789222]
[1717057805859,2.69042,3716.9,3716.6,1.29789222]
[1717057808526,2.69008,3717.4,3716.6,1.29789222]
[1717057808652,2.69008,3717.4,3716.7,2.7751]
[1717057808653,2.53782287,3717.3,3716.7,2.7751]
[1717057808966,1.95573795,3717.2,3716.9,1.29789222]
[1717057809166,2.69008,3717.4,3717.0,0.40729922]
[1717057809371,2.69008,3717.4,3717.1,1.29789222]
[1717057813698,2.68973,3717.9,3717.1,1.29789222]
[1717057813898,1.95540972,3717.8,3717.1,1.29789222]
[1717057814096,2.53739393,3717.8,3717.1,1.46841136]
[1717057814298,2.53739393,3717.8,3717.2,4.13979222]
[1717057814299,1.95540972,3717.7,3717.2,4.13979222]
[1717057814838,2.68973,3717.9,3717.3,1.29789222]
[1717057815686,2.68935,3718.4,3717.4,1.29789222]
[1717057815883,2.53700486,3718.3,3717.5,0.41397922]
[1717057816115,1.95511279,3718.2,3717.6,1.29789222]
[1717057818198,1.95511279,3718.1,3717.6,1.29789222]
[1717057818385,2.68935,3718.4,3717.6,1.29789222]
[1717057818613,1.95509995,3718.3,3717.6,1.29789222]
[1717057818773,1.95509995,3718.3,3717.7,0.17118714]
[1717057819100,1.95509995,3718.3,3717.8,1.29789222]
[1717057819610,1.95509995,3718.3,3717.9,3.95439222]
[1717057819811,2.68935,3718.4,3717.9,3.95439222]
[1717057820314,4.671,3718.9,3718.0,1.29789222]
[1717057820519,4.95487539,3718.8,3718.0,1.71045016]
[1717057820685,1.95487539,3718.7,3718.0,1.71045016]
[1717057821085,2.68924,3718.6,3718.0,1.29789222]
[1717057821271,2.68936,3718.4,3718.0,1.29789222]
[1717057821784,2.68936,3718.4,3718.2,1.29789222]
[1717057822943,3.0,3718.8,3718.2,1.29789222]
[1717057823247,1.95495388,3718.7,3718.3,1.29789222]
[1717057823401,2.689,3718.9,3718.3,1.29789222]
[1717057824299,2.689,3718.9,3718.3,1.70165144]
[1717057826826,2.689,3718.9,3718.3,1.29789222]
[1717057828540,4.67064,3719.4,3718.4,3.92739222]
[1717057828713,2.68864,3719.4,3718.9,2.6295]
[1717057828914,2.68864,3719.4,3719.0,1.29789222]
[1717057829435,3.764489,3720.8,3719.0,1.29789222]
[1717057829436,2.6881,3720.1,3719.3,1.29789222]
[1717057829637,2.6881,3720.1,3718.9,2.6295]
[1717057829638,2.68826,3719.9,3719.4,1.29789222]
[1717057830210,2.68826,3719.9,3718.7,2.68909]
[1717057830211,2.68826,3719.9,3719.7,1.29789222]
[1717057833739,2.68781,3720.5,3719.8,1.29789222]
[1717057833943,2.68781,3720.5,3720.2,1.29789222]
[1717057834613,2.68817,3720.0,3719.1,2.6376]
[1717057834815,2.68817,3720.0,3719.3,1.29789222]
[1717057835143,10.06749,3721.0,3719.3,1.29789222]
[1717057835144,2.68837,3719.8,3719.3,1.29789222]
[1717057835541,2.68837,3719.8,3719.5,1.29789222]
[1717057835766,2.68837,3719.8,3719.6,1.29789222]
[1717057835898,2.68797,3720.3,3719.7,4.08489222]
[1717057836100,3.0,3720.2,3719.8,1.29789222]
[1717057836365,2.68797,3720.3,3720.1,1.29789222]
[1717057837341,2.68738,3721.1,3720.2,1.29789222]
[1717057837671,2.68738,3721.1,3720.4,1.29789222]
[1717057838443,4.66975,3720.6,3720.4,1.29789222]
[1717057839403,2.68775,3720.6,3720.4,1.29789222]
[1717057839799,2.68775,3720.6,3720.5,2.6088]
[1717057840012,2.68775,3720.6,3720.5,4.29736144]
[1717057840260,1.982,3721.0,3720.5,4.29736144]
[1717057840469,1.982,3721.0,3720.6,1.29789222]
[1717057841065,2.68753,3720.9,3720.6,1.29789222]
[1717057842728,1.982,3720.7,3719.4,2.68855]
[1717057842928,1.982,3720.1,3719.6,1.29789222]
[1717057843758,2.6879,3720.4,3719.6,1.29789222]
[1717057843980,7.38,3722.4,3720.4,2.7209]
[1717057844173,1.982,3721.7,3720.7,1.29789222]
[1717057844528,2.68704,3721.6,3720.9,1.29789222]
[1717057845942,2.68736,3721.2,3720.9,1.29789222]
[1717057847359,1.982,3721.0,3720.9,1.29789222]
[1717057849988,2.68768,3720.7,3719.9,2.623]
[1717057850218,2.68768,3720.7,3720.0,1.56019222]
[1717057850219,1.982,3720.6,3720.0,1.56019222]
[1717057850509,1.982,3720.6,3720.1,1.29789222]
[1717057850867,2.68768,3720.7,3720.3,1.29789222]
[1717057854508,3.0,3945.0,3720.6,1.29789222]
[1717057854509,1.1677,3722.5,3720.6,1.29789222]
[1717057854716,0.58142292,3722.4,3720.9,1.29789222]
[1717057855316,2.68668,3722.1,3721.0,0.05374369]
[1717057855606,1.982,3721.9,3720.9,1.29789222]
[1717057856363,2.68668,3722.1,3720.9,1.29789222]
[1717057857786,1.982,3722.0,3720.9,1.29789222]
[1717057858001,1.982,3722.0,3721.1,0.01161983]
[1717057858302,1.982,3722.0,3721.4,1.29789222]
[1717057859156,2.68682,3721.9,3721.4,1.29789222]
[1717057859358,2.68682,3721.9,3721.4,1.70636342]
[1717057861090,3.0,3722.4,3721.1,0.01161983]
[1717057861091,2.68719,3721.4,3721.1,0.01161983]
[1717057861256,2.68719,3721.4,3721.2,1.29789222]
[1717057861903,2.68719,3721.4,3721.1,0.01161983]
[1717057862203,1.982,3721.7,3721.1,0.01161983]
[1717057862405,3.0,3721.7,3721.1,2.71681983]
[1717057862637,2.68692,3721.8,3721.5,1.29789222]
[1717057865765,2.68653,3722.3,3721.7,1.29789222]
[1717057867377,2.68653,3722.3,3721.8,1.29789222]
[1717057868306,2.68653,3722.3,3722.0,1.29789222]
[1717057869783,2.68665,3722.1,3722.0,1.29789222]
[1717057870330,0.1249929,3722.6,3722.0,1.29789222]
[1717057870331,2.1069929,3722.6,3722.0,1.29789222]
[1717057870629,5.1069929,3722.6,3722.0,1.29789222]
[1717057870786,2.1069929,3722.6,3722.3,1.29789222]
[1717057870987,0.1249929,3722.6,3722.3,1.29789222]
[1717057871426,0.1249929,3722.6,3722.3,1.70990144]
[1717057871998,2.68636,3722.5,3722.3,1.29789222]
[1717057873797,2.6867,3722.1,3721.4,0.52999398]
[1717057874000,2.6867,3722.1,3721.5,1.29789222]
[1717057874209,2.68676,3722.0,3721.1,0.01161983]
[1717057874533,2.68716,3721.4,3721.2,1.29789222]
[1717057875731,2.68716,3721.4,3721.1,0.01161983]
[1717057875939,2.68716,3721.4,3721.1,1.30951205]
[1717057876307,2.68716,3721.4,3721.2,1.29789222]
[1717057876724,2.68716,3721.4,3721.3,1.29789222]
[1717057877334,2.68716,3721.4,3721.3,1.70690343]
[1717057878144,2.68683,3721.9,3721.3,1.70690343]
[1717057878440,0.1249929,3722.6,3721.7,1.29789222]
[1717057878441,2.68645,3722.4,3721.7,1.29789222]
[1717057878609,1.9532226,3722.3,3721.8,1.29789222]
[1717057878873,2.68645,3722.4,3722.2,1.29789222]
[1717057879183,2.68645,3722.4,3722.2,1.57356202]
[1717057879529,0.1249929,3722.6,3722.3,1.29789222]
[1717057879931,0.1249929,3722.6,3722.4,1.29789222]
[1717057881568,0.1249929,3722.6,3722.2,0.2756698]
[1717057881569,0.1249929,3722.6,3722.5,1.29789222]
[1717057891195,0.1249929,3722.6,3722.5,4.01459222]
[1717057891417,0.1249929,3722.6,3722.5,4.41605144]
[1717057898191,0.1249929,3722.6,3722.5,1.69935144]
[1717057899601,0.1249929,3722.6,3722.5,4.56685144]
[1717057899785,0.1249929,3722.6,3722.5,8.11685144]
[1717057899989,0.1249929,3722.6,3722.5,7.56685144]
[1717057900379,0.1249929,3722.6,3722.5,8.11685144]
[1717057900586,0.1249929,3722.6,3722.5,7.56685144]
[1717057901012,0.1249929,3722.6,3722.5,8.11685144]
[1717057903059,1.982,3724.5,3722.9,2.68604]
[1717057903060,4.66695,3724.5,3722.9,2.68604]
[1717057903335,2.68495,3724.5,3724.1,1.29789222]
[1717057903618,2.68495,3724.5,3724.2,1.29789222]
[1717057904133,2.68457,3725.0,3724.4,1.29789222]
[1717057904281,2.68457,3725.0,3724.5,1.29789222]
[1717057904992,1.982,3725.7,3724.9,1.29789222]
[1717057905315,2.6845,3725.1,3724.9,1.29789222]
[1717057906269,1.982,3725.3,3723.8,10.1241]
[1717057906270,2.68492,3724.5,3723.8,7.38]
[1717057906474,2.68492,3724.5,3724.1,1.29789222]
[1717057908392,4.66692,3724.5,3724.1,1.29789222]
[1717057908708,2.68492,3724.5,3724.2,1.29789222]
[1717057909281,2.68506,3724.3,3724.2,1.29789222]
[1717057910685,2.68493,3724.5,3724.2,1.29789222]
[1717057911024,6.12913,3724.5,3724.2,1.29789222]
[1717057912976,2.68506,3724.3,3724.2,1.29789222]
[1717057913180,3.35608618,3724.3,3724.2,1.29789222]
[1717057914026,2.68543,3723.8,3723.0,0.268604]
[1717057914229,2.68543,3723.8,3723.2,1.29789222]
[1717057914935,2.68575,3723.4,3723.2,1.29789222]
[1717057916094,2.68575,3723.4,3723.3,1.29789222]
[1717057916912,2.68607,3723.0,3721.9,3.0]
[1717057917116,2.68607,3723.0,3722.2,1.29789222]
[1717057919322,2.68607,3723.0,3722.3,1.29789222]
[1717057920484,2.68607,3723.0,3722.5,1.29789222]
[1717057921096,4.66807,3723.0,3722.5,1.29789222]
[1717057921330,4.936677,3723.0,3722.5,1.29789222]
[1717057922423,4.66807,3723.0,3722.5,1.29789222]
[1717057924037,2.68657,3722.3,3721.5,7.38]
[1717057924218,1.982,3722.6,3721.6,1.29789222]
[1717057924384,2.68683,3721.9,3721.6,1.29789222]
[1717057925101,1.982,3722.2,3721.6,1.29789222]
[1717057925332,1.982,3722.2,3720.3,2.7878]
[1717057925333,2.68671,3722.1,3721.7,1.29789222]
[1717057925489,1.982,3721.8,3721.7,1.29789222]
[1717057927632,1.982,3721.8,3720.3,2.7878]
[1717057927633,2.68702,3721.6,3720.3,2.7878]
[1717057927806,2.68702,3721.6,3721.2,1.29789222]
[1717057928128,2.6873,3721.2,3720.3,2.7878]
[1717057928335,2.6873,3721.2,3721.1,1.30951205]
[1717057929292,2.6873,3721.2,3721.1,0.01161983]
[1717057930204,2.6873,3721.2,3721.1,1.30951205]
[1717057930533,4.6693,3721.2,3721.1,1.30951205]
[1717057931729,5.07605306,3721.2,3721.1,0.01161983]
[1717057932108,4.6693,3721.2,3721.1,0.01161983]
[1717057932420,4.6689,3721.8,3721.1,1.30951205]
[1717057932627,2.6869,3721.8,3721.1,1.30951205]
[1717057933331,2.6869,3721.8,3721.2,1.29789222]
[1717057933542,2.68646,3722.4,3721.7,1.29789222]
[1717057933690,2.68673,3722.0,3721.7,1.29789222]
[1717057938204,1.982,3722.1,3721.7,1.29789222]
[1717057939142,7.38,3723.5,3722.0,1.29789222]
[1717057939143,2.68599,3723.1,3722.0,1.29789222]
[1717057939345,1.982,3722.8,3722.2,1.29789222]
[1717057939733,2.68625,3722.7,3722.2,1.29789222]
[1717057941438,1.982,3722.3,3722.2,1.29789222]
[1717057942408,1.982,3722.6,3722.2,1.29789222]
[1717057942610,10.06585,3723.3,3722.3,0.37948922]
[1717057942611,1.982,3722.9,3722.3,0.37948922]
[1717057942928,1.982,3722.9,3722.4,1.29789222]
[1717057944013,10.06585,3723.3,3722.4,1.29789222]
[1717057944212,2.68585,3723.3,3722.4,1.29789222]
[1717057944555,1.982,3722.9,3722.4,1.29789222]
[1717057944766,1.982,3722.9,3722.5,0.16773814]
[1717057944913,1.982,3722.9,3722.6,1.29789222]
[1717057945990,1.982,3722.9,3721.6,2.4023]
[1717057945991,2.6865,3722.4,3721.6,2.4023]
[1717057946255,2.6865,3722.4,3721.7,1.29789222]
[1717057946256,1.982,3721.9,3721.7,1.29789222]
[1717057948720,1.982,3722.3,3721.7,1.29789222]
[1717057949832,1.982,3722.3,3721.2,2.4023]
[1717057949833,1.982,3722.3,3721.8,1.29789222]
[1717057950150,1.982,3722.3,3721.2,2.4023]
[1717057950151,1.982,3722.3,3722.0,1.29789222]
[1717057950393,1.982,3722.7,3722.1,3.66359222]
[1717057950559,2.68609,3722.9,3722.2,1.66425144]
[1717057950889,4.66809,3722.9,3722.2,1.66425144]
[1717057951030,4.66809,3722.9,3722.3,1.29789222]
[1717057951420,1.982,3722.9,3722.6,1.29789222]
[1717057951641,2.68574,3723.4,3722.8,1.29789222]
[1717057951927,1.982,3723.5,3723.0,1.29789222]
[1717057952162,2.68538,3723.9,3723.0,3.58599222]
[1717057952485,1.982,3723.6,3723.1,0.35859922]
[1717057952624,1.982,3723.6,3723.2,1.29789222]
[1717057954044,4.66738,3723.9,3723.2,1.29789222]
[1717057955675,1.982,3723.5,3723.2,1.29789222]
[1717057955880,4.66771,3723.5,3723.2,1.29789222]
[1717057960798,2.68598,3723.1,3722.5,2.335]
[1717057960970,2.68598,3723.1,3722.6,1.29789222]
[1717057961483,2.68598,3723.1,3722.7,1.29789222]
[1717057961797,2.68661,3722.2,3721.2,2.2556]
[1717057962028,1.982,3722.8,3721.2,2.2556]
[1717057962029,2.68619,3722.8,3721.2,2.2556]
[1717057962225,2.68619,3722.8,3721.4,2.3538]
[1717057962351,2.68619,3722.8,3721.5,1.29789222]
[1717057962554,2.68619,3722.8,3721.5,1.35161869]
[1717057962802,2.68619,3722.8,3721.6,2.4679]
[1717057962952,2.68619,3722.8,3721.7,1.67447144]
[1717057963157,2.68619,3722.8,3722.4,1.29789222]
[1717057966401,4.66819,3722.8,3722.4,1.29789222]
[1717057970581,2.68619,3722.8,3722.4,1.29789222]
[1717057970888,4.66819,3722.8,3722.4,1.29789222]
[1717057971726,5.135009,3722.8,3722.4,1.29789222]
[1717057972111,2.68629,3722.6,3722.4,1.29789222]
[1717057972318,0.58128625,3722.5,3722.4,1.29789222]
[1717057972489,2.68629,3722.6,3722.4,1.29789222]
[1717057974172,1.982,3722.8,3721.1,0.01161983]
[1717057974173,0.5812701,3722.5,3721.1,0.01161983]
[1717057974373,1.982,3722.3,3721.4,1.29789222]
[1717057975042,2.6867,3722.1,3721.8,1.29789222]
[1717057982787,2.68634,3722.6,3721.8,1.29789222]
[1717057982989,2.68651,3722.3,3721.8,1.29789222]
[1717057987019,2.68616,3722.8,3722.1,1.29789222]
[1717057987165,2.68616,3722.8,3722.3,1.29789222]
[1717057987801,2.6863,3722.6,3722.3,1.29789222]
[1717057989102,2.68596,3723.1,3722.3,1.29789222]
[1717057989305,1.9526979,3723.0,3722.3,1.29789222]
[1717057989814,4.66796,3723.1,3722.3,1.29789222]
[1717057991121,2.6856,3723.6,3722.6,1.29789222]
[1717057991261,1.95252164,3723.5,3722.7,3.54859222]
[1717057993390,2.6856,3723.6,3723.2,1.29789222]
[1717057993804,1.982,3723.7,3723.4,1.29789222]
[1717057994004,1.982,3724.1,3723.4,1.29789222]
[1717057994228,1.9521908,3724.0,3723.4,1.29789222]
[1717057995019,2.68539,3723.9,3723.4,1.29789222]
[1717057995192,2.68557,3723.6,3723.4,1.29789222]
[1717057995789,1.95238837,3723.5,3723.4,1.29789222]
[1717057996445,2.68557,3723.6,3723.4,1.29789222]
[1717057997693,4.66757,3723.6,3723.4,1.29789222]
[1717057998144,1.982,3723.6,3723.4,1.29789222]
[1717057999662,2.68523,3724.1,3723.5,1.29789222]
[1717057999808,2.68523,3724.1,3723.6,1.29789222]
[1717058000008,4.66723,3724.1,3723.6,1.29789222]
[1717058000645,4.66723,3724.1,3723.6,3.74719222]
[1717058000808,4.66723,3724.1,3723.7,0.37471922]
[1717058001005,4.66723,3724.1,3723.8,1.29789222]
[1717058002357,2.68486,3724.6,3724.0,1.29789222]
[1717058004361,2.68486,3724.6,3724.2,1.29789222]
[1717058005119,2.68486,3724.6,3724.3,1.29789222]
[1717058005316,1.982,3724.7,3724.3,1.29789222]
[1717058006018,1.0757,3724.9,3724.3,1.29789222]
[1717058006220,1.0757,3724.9,3724.5,3.62429222]
[1717058006613,1.0757,3724.9,3724.6,1.29789222]
[1717058007019,1.0757,3724.9,3724.7,1.29789222]
[1717058007233,1.0757,3724.9,3724.8,1.29789222]
[1717058009558,1.0757,3724.9,3723.8,13.06541]
[1717058009717,1.0757,3724.9,3724.3,1.29789222]
[1717058009718,2.68486,3724.6,3724.3,1.29789222]
[1717058009918,1.0757,3724.9,3724.3,1.29789222]
[1717058009919,1.982,3724.7,3724.3,1.29789222]
[1717058010530,1.982,3724.7,3724.4,1.29789222]
[1717058010773,1.0757,3724.9,3724.4,1.29789222]
[1717058011164,2.68474,3724.8,3724.4,1.29789222]
[1717058012002,1.982,3724.7,3724.4,1.29789222]
[1717058012217,2.68485,3724.6,3724.4,1.29789222]
[1717058014265,2.68485,3724.6,3724.5,2.4719]
[1717058015715,7.38,3725.7,3724.5,4.14677144]
[1717058015716,2.68439,3725.3,3724.5,4.14677144]
[1717058015943,2.68439,3725.3,3724.6,1.29789222]
[1717058016138,2.68439,3725.3,3724.7,1.29789222]
[1717058017972,4.66639,3725.3,3724.7,1.29789222]
[1717058018175,1.982,3724.9,3724.7,1.29789222]
[1717058024145,1.982,3724.9,3723.5,7.38]
[1717058024146,0.2288,3724.8,3723.1,2.3914]
[1717058024359,1.982,3723.6,3723.2,1.29789222]
[1717058025002,2.68565,3723.5,3723.2,1.29789222]
[1717058025609,2.68528,3724.0,3723.4,1.29789222]
[1717058025835,2.68528,3724.0,3723.5,2.2562]
[1717058025836,0.58107067,3723.9,3723.5,2.2562]
[1717058025990,2.68528,3724.0,3723.7,1.29789222]
[1717058029000,2.68542,3723.8,3723.7,1.29789222]
[1717058031239,4.66704,3724.4,3723.7,1.29789222]
[1717058031802,2.6854,3723.9,3723.7,1.29789222]
[1717058035747,4.667,3724.4,3723.7,1.29789222]
[1717058036044,4.667,3724.4,3723.9,1.29789222]
[1717058036717,4.667,3724.4,3723.6,2.3501]
[1717058036718,4.667,3724.4,3724.1,1.29789222]
[1717058038945,4.667,3724.4,3724.2,1.29789222]
[1717058038946,2.685,3724.4,3724.2,1.29789222]
[1717058039244,2.68466,3724.9,3724.2,1.29789222]
[1717058039552,1.95172553,3724.8,3724.2,1.29789222]
[1717058039741,4.66666,3724.9,3724.2,1.29789222]
[1717058041273,1.95166546,3724.8,3724.2,1.29789222]
[1717058044273,1.982,3724.5,3724.2,1.29789222]
[1717058046209,4.66697,3724.5,3724.2,1.29789222]
[1717058046388,2.15003343,3724.4,3723.1,2.3505]
[1717058046712,2.15003343,3724.4,3723.3,1.29789222]
[1717058046713,1.982,3723.7,3723.3,1.29789222]
[1717058048730,2.6854,3723.9,3723.5,1.29789222]
[1717058048939,1.95225667,3723.8,3723.5,1.29789222]
[1717058049336,2.68501,3724.4,3723.5,1.29789222]
[1717058049539,1.95209679,3724.3,3723.5,1.29789222]
[1717058049957,1.95209679,3724.3,3723.8,1.29789222]
[1717058050247,2.68501,3724.4,3723.9,2.4641]
[1717058050450,2.68501,3724.4,3724.0,1.29789222]
[1717058050739,1.982,3724.5,3724.1,1.29789222]
[1717058052707,0.58091457,3724.9,3724.3,1.29789222]
[1717058052708,2.56291457,3724.9,3724.3,1.29789222]
[1717058052911,1.982,3724.9,3724.3,1.29789222]
[1717058053357,2.68473,3724.8,3724.3,1.29789222]
[1717058053861,1.982,3724.9,3724.3,1.29789222]
[1717058059848,2.68471,3724.8,3724.3,1.29789222]
[1717058060181,1.982,3724.5,3724.3,1.29789222]
[1717058061084,2.68499,3724.4,3723.3,2.3287]
[1717058061269,1.982,3724.1,3723.4,1.29789222]
[1717058062771,2.68529,3724.0,3723.4,1.29789222]
[1717058062975,1.982,3723.7,3723.4,1.29789222]
[1717058065299,2.68557,3723.6,3723.4,1.29789222]
[1717058065506,3.2104308,3723.6,3723.4,1.29789222]
[1717058065791,3.2104308,3723.6,3722.4,2.3938]
[1717058066093,1.982,3723.2,3722.4,2.3938]
[1717058066292,0.5248608,3723.6,3722.4,2.3938]
[1717058066498,2.68584,3723.3,3722.4,2.3938]
[1717058066667,2.68584,3723.3,3722.5,1.29789222]
[1717058069017,2.68627,3722.7,3722.5,1.29789222]
[1717058069307,1.982,3722.6,3721.6,2.4128]
[1717058069459,1.982,3722.6,3721.7,1.53917222]
[1717058071131,1.982,3722.6,3722.1,1.29789222]
[1717058071516,1.982,3723.0,3722.4,1.29789222]
[1717058071690,1.982,3723.0,3722.5,2.4128]
[1717058071895,1.982,3723.0,3722.6,1.66896144]
[1717058072535,2.68552,3723.7,3722.9,1.29789222]
[1717058072737,4.66752,3723.7,3722.9,1.29789222]
[1717058073537,7.6088,3724.0,3722.9,1.29789222]
[1717058073538,4.66784,3723.3,3722.9,1.29789222]
[1717058075215,4.66784,3723.3,3722.1,2.434]
[1717058075419,2.68612,3722.9,3722.2,1.29789222]
[1717058075615,4.66812,3722.9,3722.2,1.29789222]
[1717058075947,4.66812,3722.9,3722.3,0.37318922]
[1717058076154,4.66812,3722.9,3722.4,1.29789222]
[1717058078455,4.66812,3722.9,3721.7,0.24128]
[1717058078456,2.68652,3722.3,3721.7,0.24128]
[1717058078623,2.68652,3722.3,3721.8,1.29789222]
[1717058078816,2.68652,3722.3,3721.9,0.39120722]
[1717058079029,2.68652,3722.3,3722.0,1.29789222]
[1717058079250,1.982,3722.1,3722.0,1.29789222]
[1717058083870,2.68674,3722.0,3721.3,3.0]
[1717058084017,2.68674,3722.0,3721.4,1.29789222]
[1717058084219,2.68674,3722.0,3721.5,0.35596922]
[1717058084422,4.66839,3722.5,3721.6,1.29789222]
[1717058085417,0.2288,3723.0,3721.6,1.29789222]
[1717058085418,2.68694,3721.7,3721.6,1.29789222]
[1717058085619,4.937634,3721.7,3721.1,0.01161983]
[1717058085919,2.68631,3722.6,3721.2,5.12629]
[1717058086164,4.66831,3722.6,3721.2,5.12629]
[1717058086601,4.66831,3722.6,3721.6,1.29789222]
[1717058086976,4.66831,3722.6,3721.8,1.29789222]
[1717058086977,2.68631,3722.6,3721.8,1.29789222]
[1717058087164,2.68631,3722.6,3721.9,2.2985]
[1717058087364,2.68631,3722.6,3722.0,1.65753144]
[1717058088892,2.68631,3722.6,3722.0,1.29789222]
[1717058090072,1.982,3722.3,3722.0,1.29789222]
[1717058090306,1.982,3722.3,3721.3,2.489]
[1717058090307,2.68658,3722.2,3721.3,2.489]
[1717058090521,2.68658,3722.2,3722.0,1.29789222]
[1717058090838,2.68658,3722.2,3722.1,1.29789222]
[1717058091510,2.68658,3722.2,3721.3,2.489]
[1717058091814,2.68658,3722.2,3721.4,1.5479542]
[1717058092169,2.68658,3722.2,3721.5,1.29789222]
[1717058092588,4.66858,3722.2,3721.5,1.29789222]
[1717058101997,0.58131534,3722.1,3721.5,1.29789222]
[1717058102629,4.66858,3722.2,3721.5,1.29789222]
[1717058103190,2.68677,3722.0,3721.5,1.29789222]
[1717058103734,2.68677,3722.0,3721.5,1.70158764]
[1717058104226,2.68677,3722.0,3721.5,1.29789222]
[1717058104843,1.982,3722.2,3721.1,0.01161983]
[1717058104844,2.68706,3721.6,3721.1,0.01161983]
[1717058105153,2.68706,3721.6,3721.2,1.29789222]
[1717058106004,2.68706,3721.6,3721.1,0.01161983]
[1717058106200,4.66923,3721.3,3721.1,1.30951205]
[1717058107946,4.66923,3721.3,3721.1,0.01161983]
[1717058108454,1.13142161,3721.2,3721.1,0.01161983]
[1717058109351,0.58142161,3721.2,3721.1,0.01161983]
[1717058109922,4.66923,3721.3,3721.1,1.30951205]
[1717058113245,1.95365994,3721.2,3721.1,1.30951205]
[1717058114150,4.66923,3721.3,3721.1,0.01161983]
[1717058114363,1.95365857,3721.2,3721.1,0.01161983]
[1717058115382,4.66923,3721.3,3721.1,0.01161983]
[1717058115561,4.66923,3721.3,3721.1,1.30951205]
[1717058117169,4.66923,3721.3,3721.1,0.01161983]
[1717058117384,2.53502202,3721.2,3721.1,0.01161983]
[1717058118236,1.95359434,3721.2,3721.1,0.01161983]
[1717058118433,2.53508126,3721.2,3721.1,0.01161983]
[1717058119087,3.08508126,3721.2,3721.1,0.01161983]
[1717058119448,6.08508126,3721.2,3721.1,0.01161983]
[1717058119686,7.04557562,3721.2,3721.1,0.01161983]
[1717058120840,7.04562555,3721.2,3721.1,0.01161983]
[1717058121985,7.27442555,3721.2,3721.1,0.01161983]
[1717058122212,7.27442555,3721.2,3719.7,2.2866]
[1717058122421,1.982,3720.2,3719.8,1.29789222]